bitfinex-derivatives/quotes_ETHF0:USTF0_20250627
["timestamp","ask_amount","ask_price","bid_price","bid_amount"]
[1751031180502,1.73,2428.0,2427.9,39.43]
[1751031180800,1.73,2428.0,2427.9,40.25347]
[1751031181005,1.73,2428.0,2427.4,3.2078]
[1751031181205,0.82353,2427.7,2427.6,7.575]
[1751031181401,0.82357,2427.6,2427.5,34.549]
[1751031181599,0.8237,2427.2,2427.1,49.455]
[1751031181800,0.8237,2427.2,2427.1,34.565]
[1751031182005,13.29956442,2427.2,2426.3,7.575]
[1751031182208,0.82394,2426.5,2426.4,34.565]
[1751031182405,0.82394,2426.5,2426.4,34.612]
[1751031183304,0.7281,2427.1,2426.4,42.8198]
[1751031183509,3.9276,2427.4,2426.7,3.2078]
[1751031183809,3.9276,2427.4,2426.8,36.81082]
[1751031183810,0.0394,2426.9,2426.8,36.81082]
[1751031184004,0.0394,2426.9,2426.8,36.81282]
[1751031184304,0.8632,2426.9,2426.8,34.601]
[1751031185509,0.0396,2427.0,2426.8,34.601]
[1751031185810,0.7144,2427.3,2426.9,1.4179]
[1751031186001,0.82374,2427.1,2427.0,27.014]
[1751031186199,2.81374,2427.1,2427.0,27.014]
[1751031186401,1.99,2427.1,2427.0,27.014]
[1751031186609,0.32315015,2427.1,2427.0,36.05032246]
[1751031187116,0.06091395,2427.1,2427.0,34.58275246]
[1751031187303,0.06091395,2427.1,2427.0,35.40652246]
[1751031188610,0.06091395,2427.1,2427.0,48.70608688]
[1751031189008,3.95e-06,2427.1,2427.0,48.70608688]
[1751031189313,0.0194,2427.9,2427.8,0.8235]
[1751031189514,0.0194,2427.9,2427.8,35.4105]
[1751031189709,3.2078,2428.1,2428.0,0.82343]
[1751031189905,3.2078,2428.1,2428.0,27.83243]
[1751031190106,5.1606,2428.1,2428.0,27.83243]
[1751031190309,5.1647783,2428.1,2428.0,27.83243]
[1751031190808,18.46434272,2428.1,2427.2,3.2078]
[1751031191010,18.46434272,2428.1,2427.3,27.055]
[1751031191011,3.2078,2427.8,2427.3,27.055]
[1751031191208,3.2078,2427.8,2427.3,28.4218]
[1751031191407,0.82353,2427.7,2427.4,0.82361]
[1751031191607,0.7655,2427.5,2427.4,0.82361]
[1751031191800,0.7767,2427.6,2427.5,0.8236]
[1751031192007,0.7767,2427.6,2427.5,38.6964]
[1751031192207,3.2119783,2428.1,2427.5,87.3128]
[1751031192413,1.9928,2428.0,2427.6,0.82353]
[1751031192611,1.9928,2428.0,2427.8,0.82349]
[1751031192914,1.9928,2428.0,2427.5,88.6534]
[1751031192915,1.9928,2428.0,2427.9,35.48047]
[1751031193115,1.9928,2428.0,2427.9,34.656]
[1751031193413,1.9928,2428.0,2427.9,35.47947]
[1751031193613,2.81623,2428.0,2427.9,34.656]
[1751031193915,9.27253,2428.0,2427.9,27.06]
[1751031194110,4.27253,2428.0,2427.9,27.06]
[1751031194310,2.27973,2428.0,2427.9,27.06]
[1751031194505,4.27253,2428.0,2427.9,27.06]
[1751031194705,3.4491,2428.0,2427.9,27.06]
[1751031194916,1.9928,2428.0,2427.9,27.88347]
[1751031195110,1.9928,2428.0,2427.9,29.33997]
[1751031195313,0.0041783,2428.1,2427.9,1.4565]
[1751031195609,1.9969783,2428.1,2428.0,0.82343]
[1751031195913,1.9969783,2428.1,2428.0,4.03123]
[1751031196113,1.9969783,2428.1,2428.0,6.18133]
[1751031196318,1.9969783,2428.1,2428.0,19.48089442]
[1751031196614,0.0041783,2428.1,2428.0,19.48089442]
[1751031197014,0.0608417,2428.1,2428.0,6.18133]
[1751031197210,0.0608417,2428.1,2428.0,11.18133]
[1751031197413,0.3132,2428.4,2428.0,19.48089442]
[1751031197616,0.0241,2428.7,2428.4,2.05821]
[1751031197816,1.23276781,2428.6,2428.5,36.84306]
[1751031198016,1.23276781,2428.6,2428.5,82.64306]
[1751031198514,0.0050112,2428.6,2428.5,82.64306]
[1751031199017,0.17641194,2429.2,2429.0,3.2078]
[1751031199314,4.05904424,2429.8,2429.1,37.5445]
[1751031199315,3.24841113,2429.8,2429.1,37.5445]
[1751031199507,3.24841113,2429.8,2429.7,0.82286]
[1751031199710,3.24841113,2429.9,2429.8,0.82282]
[1751031199905,3.24841113,2430.0,2429.9,0.82279]
[1751031200110,4.88174424,2430.2,2429.9,27.22]
[1751031200307,3.21078961,2430.0,2429.8,0.00517905]
[1751031200512,4.06307549,2429.9,2429.8,0.00517905]
[1751031200711,4.06307549,2429.9,2429.8,27.23117905]
[1751031200712,6.14637549,2429.9,2429.8,27.23117905]
[1751031200907,7.90609,2429.9,2429.8,27.23117905]
[1751031201106,7.90609,2429.9,2429.8,24.76151239]
[1751031201620,1.3847,2429.9,2429.8,24.76151239]
[1751031201811,5.44871413,2429.9,2429.8,24.76151239]
[1751031202010,6.61592413,2429.9,2429.8,24.76151239]
[1751031202309,5.23255922,2429.9,2429.8,25.58782806]
[1751031202509,3.24255922,2429.9,2429.8,27.00352806]
[1751031202706,3.24554883,2430.0,2429.8,26.18070806]
[1751031202912,4.06534922,2429.9,2429.8,7.57349567]
[1751031203108,2.18589,2429.9,2429.8,0.00349567]
[1751031203319,6.09238534,2429.9,2429.8,34.81949567]
[1751031203818,2.85039,2429.9,2429.8,34.81949567]
[1751031204220,2.0276,2429.9,2429.8,34.81949567]
[1751031204419,2.85039,2429.9,2429.8,34.81949567]
[1751031204610,3.52489,2429.9,2429.8,34.81949567]
[1751031205007,1.339,2429.9,2429.8,35.64231567]
[1751031205215,1.49729,2429.9,2429.8,0.00349567]
[1751031205419,1.49729,2429.9,2429.8,34.78049567]
[1751031205813,1.49729,2429.9,2429.8,0.00349567]
[1751031206014,0.82289,2429.6,2429.5,27.198]
[1751031206218,10.50226044,2429.9,2429.6,0.82288]
[1751031206419,0.82284,2429.8,2429.6,0.82288]
[1751031206914,0.82286,2429.7,2429.5,68.8209]
[1751031207115,0.8795251,2429.7,2429.5,68.82533163]
[1751031207314,0.82289,2429.6,2429.5,0.00443163]
[1751031207514,2.25729,2429.6,2429.5,34.79643163]
[1751031207816,0.0566651,2429.7,2429.6,0.82289]
[1751031208017,0.05316943,2429.7,2429.6,7.85529]
[1751031208218,0.05316943,2429.7,2429.6,48.65529]
[1751031208520,0.05316943,2429.7,2429.6,83.47829]
[1751031208719,0.05316943,2429.7,2429.6,43.65529]
[1751031209022,0.05316943,2429.7,2429.6,78.47229]
[1751031209824,0.05316943,2429.7,2429.6,43.65529]
[1751031210117,0.05316943,2429.7,2429.6,77.12169]
[1751031210318,0.05316943,2429.7,2429.6,78.48969]
[1751031210823,1.99,2429.9,2429.8,0.82282]
[1751031211125,0.00298961,2430.0,2429.9,0.82279]
[1751031211315,0.00298961,2430.0,2429.9,2.19079]
[1751031211637,0.00298961,2430.0,2429.9,0.82279]
[1751031211927,0.00298961,2430.0,2429.9,35.79279]
[1751031212126,2.79308961,2430.0,2429.9,35.79279]
[1751031212920,0.00298961,2430.0,2429.9,35.79279]
[1751031213120,0.00298961,2430.0,2429.9,78.76019]
[1751031213420,9.61e-06,2430.0,2429.9,78.76019]
[1751031214520,9.61e-06,2430.2,2430.1,0.82272]
[1751031214724,9.61e-06,2430.2,2430.1,31.24052]
[1751031215621,1e-05,2430.2,2430.1,39.54008442]
[1751031215829,5.2682,2430.8,2430.7,0.82252]
[1751031216121,6.45731245,2430.8,2430.7,35.75452]
[1751031216324,1.87071245,2430.8,2430.7,35.75452]
[1751031216518,1.18911245,2430.8,2430.7,38.96232]
[1751031216721,0.01535357,2430.8,2430.7,38.96232]
[1751031217017,7.46e-06,2430.8,2430.7,38.96232]
[1751031217530,1.08969746,2431.0,2430.9,0.82245]
[1751031217825,3.2078,2431.4,2430.9,27.99245]
[1751031218124,2.26393814,2431.3,2431.2,0.82235]
[1751031218427,2.26393814,2431.3,2431.2,35.72435]
[1751031218627,2.26850061,2431.3,2431.2,35.72435]
[1751031219121,1.17880061,2431.3,2431.2,35.71635]
[1751031219828,0.00456247,2431.3,2431.2,35.71635]
[1751031220724,0.00456247,2431.3,2431.2,34.882]
[1751031221121,3.44446247,2431.3,2431.2,7.742]
[1751031221320,2.00426247,2431.3,2431.2,35.67935]
[1751031222821,2.00426247,2431.3,2431.0,3.2078]
[1751031223018,1.3554,2431.2,2431.1,35.65437]
[1751031223429,1.3554,2431.2,2431.0,4.03019]
[1751031223631,1.3554,2431.2,2431.1,34.823]
[1751031223929,3.3551,2431.2,2431.1,35.64538]
[1751031224129,3.3551,2431.2,2431.1,34.823]
[1751031224130,8.3551,2431.2,2431.1,34.823]
[1751031224633,1.9997,2431.2,2431.1,35.64538]
[1751031226327,1.9997,2431.2,2431.1,37.02638]
[1751031226728,0.00456247,2431.3,2431.2,0.82235]
[1751031227332,0.00456247,2431.3,2431.2,5.82235]
[1751031227531,2.42384795,2432.4,2431.4,4.11138]
[1751031227727,1.16569494,2432.3,2432.2,0.82201]
[1751031227929,1.16569494,2432.3,2432.2,35.64901]
[1751031228530,1.17053095,2432.3,2432.2,35.65425688]
[1751031228931,1.9997,2432.4,2432.3,0.82198]
[1751031229137,3.24199534,2433.4,2432.3,54.45936442]
[1751031229436,0.82164,2433.4,2432.9,0.82175]
[1751031229629,1.4254,2433.5,2433.0,35.837]
[1751031229935,1.4254,2433.5,2432.8,3.2078]
[1751031229936,0.82172,2433.1,2432.8,3.2078]
[1751031230234,0.82176,2433.0,2432.9,35.815]
[1751031230429,1.53406,2433.0,2432.9,35.815]
[1751031230633,0.82181,2432.9,2432.4,50.17792]
[1751031230935,0.82183,2432.8,2432.5,35.821]
[1751031231136,0.82182,2432.8,2432.5,35.821]
[1751031231727,0.82182,2432.8,2432.4,51.59574]
[1751031231728,5.9101,2433.0,2432.6,35.816]
[1751031232233,0.7123,2433.0,2432.6,39.0238]
[1751031232530,2.7023,2433.0,2432.9,0.82177]
[1751031232729,2.7023,2433.0,2432.9,28.57077]
[1751031232931,2.7023,2433.0,2432.9,27.749]
[1751031233132,2.7023,2433.0,2432.9,35.789]
[1751031233326,0.7123,2433.0,2432.8,0.82179]
[1751031233635,1.53404,2433.0,2432.9,35.774]
[1751031233836,0.82179,2432.9,2432.6,3.2078]
[1751031234037,1.53406,2433.0,2432.7,35.767]
[1751031234432,0.8218,2432.9,2432.6,3.2078]
[1751031234633,0.82177,2432.9,2432.8,35.759]
[1751031234834,2.14957,2432.9,2432.8,35.759]
[1751031235034,4.13957,2432.9,2432.8,35.759]
[1751031235234,8.3178,2432.9,2432.4,49.356]
[1751031235444,0.82189,2432.6,2432.4,49.356]
[1751031235740,0.82186,2432.7,2432.5,35.722]
[1751031235933,0.82183,2432.8,2432.5,35.722]
[1751031236242,4.13958,2432.9,2432.6,0.82187]
[1751031236542,2.81178,2432.9,2432.7,28.49484]
[1751031236838,1.99,2432.9,2432.8,0.82181]
[1751031237435,1.99,2432.9,2432.8,2.23841]
[1751031238143,0.7123,2433.0,2432.9,0.82177]
[1751031238339,0.0589,2433.1,2433.0,0.82174]
[1751031238541,0.0589,2433.1,2433.0,28.44374]
[1751031238839,0.0589,2433.1,2433.0,38.15990442]
[1751031239041,0.0589,2433.1,2433.0,10.53790442]
[1751031239345,0.0589,2433.1,2433.0,37.89634]
[1751031240031,0.0589,2433.1,2433.0,37.89034]
[1751031240341,0.0589,2433.1,2433.0,46.18990442]
[1751031240637,0.0589,2433.1,2433.0,15.53790442]
[1751031240842,0.0589,2433.1,2433.0,51.16890442]
[1751031241139,0.0589,2433.1,2433.0,76.438]
[1751031241440,0.88061,2433.1,2433.0,76.444]
[1751031241735,0.88061,2433.1,2432.7,0.82183]
[1751031241736,7.11322,2433.1,2432.7,8.04]
[1751031241929,4.02961,2432.8,2432.7,8.04]
[1751031242130,4.02961,2432.8,2432.7,35.651]
[1751031242336,0.82189,2432.6,2432.4,50.17793]
[1751031242536,3.2078,2432.8,2432.5,36.47488]
[1751031242742,4.02963,2432.8,2432.5,35.653]
[1751031242933,3.2078,2432.8,2432.5,35.653]
[1751031243134,3.2078,2432.8,2432.6,0.82186]
[1751031243442,1.3744,2433.0,2432.7,27.607]
[1751031243638,1.15442121,2432.9,2432.8,0.82181]
[1751031243842,1.3744,2433.0,2432.9,0.82177]
[1751031244042,0.82174,2433.0,2432.9,35.627]
[1751031244342,2.89214,2433.0,2432.9,35.627]
[1751031244541,4.0604,2433.0,2432.9,36.44877]
[1751031244738,9.0604,2433.0,2432.6,3.2078]
[1751031244944,4.02961,2432.8,2432.7,35.621]
[1751031245444,10.37711,2432.8,2432.7,35.621]
[1751031245641,5.37712,2432.8,2432.7,8.04]
[1751031245836,5.37712,2432.8,2432.7,35.609]
[1751031246337,5.37712,2432.8,2432.7,36.43084]
[1751031246536,0.82179,2432.9,2432.8,0.82181]
[1751031247036,0.82181,2432.8,2432.7,35.609]
[1751031247239,3.2078,2432.8,2432.4,90.156]
[1751031247541,3.2078,2432.8,2432.2,3.21304688]
[1751031247542,0.82198,2432.3,2432.2,3.21304688]
[1751031247743,0.82193,2432.5,2432.3,0.82196]
[1751031247937,1.125,2432.6,2432.2,4.03503688]
[1751031248239,2.20517,2432.4,2432.3,35.622]
[1751031248438,3.2078,2432.5,2432.4,0.82194]
[1751031248638,4.02971,2432.5,2432.4,27.573]
[1751031249043,3.2078,2432.5,2432.4,28.39494]
[1751031249745,1.813,2432.6,2432.5,0.82191]
[1751031250043,1.125,2432.6,2432.5,0.82191]
[1751031250434,2.27385263,2432.6,2432.5,0.82191]
[1751031250837,1.14885263,2432.6,2432.5,0.82191]
[1751031251145,3.13885263,2432.6,2432.4,0.82193]
[1751031251344,3.13885263,2432.6,2432.4,0.82194]
[1751031251345,1.14885263,2432.5,2432.4,0.82194]
[1751031251744,1.14885263,2432.5,2432.4,36.40394]
[1751031252043,3.13885263,2432.5,2432.4,36.40394]
[1751031252739,3.13885263,2432.5,2432.4,0.82194]
[1751031252939,3.13885263,2432.5,2432.2,0.00524688]
[1751031253140,3.13885263,2432.5,2432.2,0.82724688]
[1751031253141,1.14885263,2432.4,2432.2,0.82724688]
[1751031253339,0.6919,2432.3,2432.2,0.82725688]
[1751031253532,0.6919,2432.3,2432.2,36.37425688]
[1751031253945,1.84290479,2432.3,2432.2,36.37425688]
[1751031255438,2.66488479,2432.3,2432.2,35.55224688]
[1751031255634,1.84290479,2432.3,2432.2,36.35725688]
[1751031255946,2.66488479,2432.3,2432.2,35.52224688]
[1751031256146,2.66488479,2432.3,2432.2,0.00524688]
[1751031256344,2.66488479,2432.3,2432.2,36.33025688]
[1751031256546,1.84290479,2432.3,2432.2,36.33025688]
[1751031257551,1.15100479,2432.3,2432.2,36.33025688]
[1751031257948,3.14100479,2432.3,2432.2,36.33025688]
[1751031258249,3.14100479,2432.3,2432.2,39.53805688]
[1751031258739,3.14100479,2432.3,2432.2,39.50405688]
[1751031259443,3.14100479,2432.3,2432.2,4.03505688]
[1751031259646,3.96298479,2432.3,2432.2,11.08504688]
[1751031259845,3.96298479,2432.3,2432.2,7.87724688]
[1751031260147,8.96298479,2432.3,2432.2,27.42724688]
[1751031261043,8.96298479,2432.3,2432.2,0.00524688]
[1751031261345,8.96298479,2432.3,2432.2,27.42924688]
[1751031262048,8.96298479,2432.3,2432.2,0.00524688]
[1751031262249,8.96298479,2432.3,2432.2,27.41824688]
[1751031263646,8.96298479,2432.3,2432.2,27.41124688]
[1751031263848,0.82211,2431.9,2431.8,49.327]
[1751031264042,0.82211,2431.9,2431.8,84.561]
[1751031264349,1.97310479,2432.0,2431.8,84.561]
[1751031264550,0.7186,2432.0,2431.9,0.82211]
[1751031264846,2.69424529,2432.0,2431.9,0.82520732]
[1751031265151,7.69424529,2432.0,2431.9,0.00309732]
[1751031265355,7.69424529,2432.0,2431.5,3.2078]
[1751031265356,0.82218,2431.7,2431.6,7.873]
[1751031265549,0.82218,2431.7,2431.6,35.211]
[1751031265744,1.15356529,2431.7,2431.6,35.211]
[1751031265948,1.15356529,2431.7,2431.6,43.30569166]
[1751031266253,0.00494432,2431.7,2431.6,42.48730931]
[1751031266454,0.00494432,2431.7,2431.6,45.44641931]
[1751031266658,1.98166012,2432.0,2431.9,0.82211]
[1751031266853,1.08553012,2432.0,2431.9,46.49841166]
[1751031267149,4.74698,2433.2,2432.9,0.82177]
[1751031267353,1.15373746,2433.1,2433.0,36.03174]
[1751031267548,1.15373746,2433.1,2433.0,37.41474]
[1751031267852,1.1579449,2433.1,2433.0,37.41474]
[1751031268052,0.00420744,2433.1,2433.0,37.41474]
[1751031268456,0.00420744,2433.1,2433.0,37.41574]
[1751031268849,0.00420744,2433.1,2433.0,40.62354]
[1751031269046,0.00420744,2433.1,2433.0,45.62354]
[1751031269546,0.00420744,2433.1,2433.0,45.60154]
[1751031270148,0.00420744,2433.1,2433.0,5.41254]
[1751031270455,0.00420744,2433.1,2433.0,1.383]
[1751031270456,0.82591744,2433.1,2433.0,1.383]
[1751031270652,0.82591744,2433.1,2433.0,36.557]
[1751031270851,0.00420744,2433.1,2433.0,36.557]
[1751031271151,0.00420744,2433.1,2432.7,44.0078]
[1751031271358,1.53701744,2433.1,2433.0,7.871]
[1751031271674,6.86699751,2433.1,2432.9,27.286]
[1751031271850,0.82181,2432.8,2432.7,7.871]
[1751031272049,4.02961,2432.8,2432.7,35.189]
[1751031272353,4.35949007,2432.8,2432.2,1.4244]
[1751031272554,0.82193,2432.5,2432.2,1.4244]
[1751031272746,3.2078,2432.5,2432.2,8.69299]
[1751031272951,1.53304,2432.4,2432.3,27.321]
[1751031273459,0.7111,2432.4,2432.3,27.321]
[1751031273759,0.7111,2432.4,2432.3,28.14298]
[1751031274052,0.7111,2432.4,2432.3,27.321]
[1751031274263,1.53304,2432.4,2432.3,27.321]
[1751031274453,1.53304,2432.4,2432.2,0.82201]
[1751031274654,1.9903,2432.5,2432.4,0.82194]
[1751031275357,1.9903,2432.5,2432.4,2.19714]
[1751031276658,0.82185,2432.7,2432.4,37.35812]
[1751031276855,3.2078,2432.9,2432.4,37.35812]
[1751031276856,2.81222,2432.5,2432.4,7.871]
[1751031277057,2.81222,2432.5,2432.4,35.165]
[1751031277258,2.81222,2432.5,2432.4,35.173]
[1751031277458,1.9903,2432.5,2432.4,35.98894]
[1751031278460,1.9903,2432.5,2432.4,35.167]
[1751031278656,1.9903,2432.5,2432.3,0.82196]
[1751031278853,1.9903,2432.5,2432.4,35.15]
[1751031279254,2.81221,2432.5,2432.1,53.35783]
[1751031279560,1.9903,2432.5,2432.3,0.82198]
[1751031279762,2.81221,2432.5,2432.4,27.27]
[1751031279954,1.9903,2432.5,2432.4,28.09194]
[1751031280155,2.81221,2432.5,2432.4,27.27]
[1751031280555,2.81221,2432.5,2432.4,35.132]
[1751031281048,1.9903,2432.5,2432.4,7.872]
[1751031281249,3.95749522,2432.5,2432.4,35.132]
[1751031281851,8.13558522,2432.5,2432.4,35.125]
[1751031282059,10.40119522,2432.5,2432.4,7.872]
[1751031282262,0.82201,2432.2,2432.1,52.5358]
[1751031282657,4.02981,2432.2,2432.1,84.449]
[1751031283151,4.02981,2432.2,2432.1,84.444]
[1751031284255,8.2078,2432.2,2431.7,1.3783]
[1751031284565,0.82215,2431.8,2431.7,7.872]
[1751031284757,0.82215,2431.8,2431.7,35.097]
[1751031284956,1.51235,2431.8,2431.7,35.097]
[1751031286151,0.82218,2431.7,2431.6,0.00380765]
[1751031286354,0.82218,2431.7,2431.6,27.23180765]
[1751031287060,0.82218,2431.7,2431.6,28.05401765]
[1751031287452,3.2078,2431.9,2431.7,0.82218]
[1751031287652,4.02993,2431.9,2431.8,27.185]
[1751031288049,1.9903,2432.1,2431.8,43.32495416]
[1751031288256,3.2078,2432.2,2432.0,0.82208]
[1751031288558,3.2078,2432.2,2432.1,27.99504]
[1751031288752,4.02981,2432.2,2432.1,27.173]
[1751031288958,0.82208,2432.0,2431.9,1.3466]
[1751031289258,0.82208,2432.0,2431.9,36.3826]
[1751031289462,7.25321,2432.2,2431.6,1.44680765]
[1751031289666,2.05512,2432.1,2431.7,34.874]
[1751031289860,0.82215,2431.8,2431.7,34.874]
[1751031290054,0.82218,2431.7,2431.6,2.26900765]
[1751031290254,0.82217,2431.8,2431.6,37.13000765]
[1751031290562,1.9903,2432.0,2431.9,0.82211]
[1751031290863,0.82217,2431.8,2431.7,0.82217]
[1751031291063,2.81247,2431.8,2431.7,35.67717]
[1751031291262,2.81247,2431.8,2431.6,2.26898765]
[1751031291459,2.81247,2431.8,2431.7,34.855]
[1751031291662,0.82218,2431.7,2431.6,1.44680765]
[1751031291862,0.82218,2431.7,2431.6,36.29680765]
[1751031292260,0.82218,2431.7,2431.6,0.00380765]
[1751031292458,0.82218,2431.7,2431.6,27.12780765]
[1751031292854,2.81248,2431.7,2431.6,27.12780765]
[1751031293463,2.81248,2431.7,2431.6,0.00380765]
[1751031293663,2.81248,2431.7,2431.6,34.84180765]
[1751031293959,2.81248,2431.7,2431.6,35.66401765]
[1751031294359,1.9903,2431.7,2431.6,42.93831416]
[1751031295361,1.9903,2431.7,2431.6,35.66401765]
[1751031295769,1.9903,2431.7,2431.6,37.06101765]
[1751031296167,1.9903,2431.7,2431.6,2.90971765]
[1751031296370,2.81248,2431.7,2431.6,1.40080765]
[1751031296665,2.81248,2431.7,2431.6,34.81980765]
[1751031297769,2.81248,2431.7,2431.6,0.00380765]
[1751031297961,2.81248,2431.7,2431.6,27.08380765]
[1751031298364,5.30823678,2431.7,2431.6,27.08380765]
[1751031298566,5.30823678,2431.7,2431.0,3.2078]
[1751031298567,0.82238,2431.1,2431.0,3.2078]
[1751031298760,0.82238,2431.1,2431.0,34.795]
[1751031298969,0.82238,2431.1,2431.0,35.61742]
[1751031299568,0.8277108,2431.1,2431.0,35.62276407]
[1751031299774,0.0053308,2431.1,2431.0,35.62276407]
[1751031299970,0.0053308,2431.1,2431.0,37.00316407]
[1751031300472,0.8277108,2431.1,2431.0,1.38574407]
[1751031300672,0.8277108,2431.1,2431.0,36.18174407]
[1751031300972,0.0053308,2431.1,2431.0,37.00416407]
[1751031301270,0.8277108,2431.1,2431.0,36.18174407]
[1751031301459,0.0053308,2431.1,2431.0,37.00416407]
[1751031301865,0.8277108,2431.1,2431.0,36.18174407]
[1751031302069,0.0053308,2431.1,2431.0,37.00416407]
[1751031302564,0.0053308,2431.1,2431.0,44.27846058]
[1751031302970,0.0053308,2431.1,2431.0,44.26246058]
[1751031303271,0.0053308,2431.1,2431.0,44.26146058]
[1751031303860,0.00152315,2431.1,2431.0,52.46926058]
[1751031304369,0.00152315,2431.1,2431.0,93.25326058]
[1751031305669,0.00152315,2431.1,2431.0,53.49026058]
[1751031305869,0.00152315,2431.1,2431.0,88.25726058]
[1751031306066,0.00152315,2431.1,2431.0,93.23126058]
[1751031306376,1.9903,2431.5,2431.4,0.82228]
[1751031306769,1.9903,2431.5,2431.4,35.58128]
[1751031307167,1.9903,2431.5,2431.4,37.56868]
[1751031307370,1.99334272,2431.5,2431.4,42.56868]
[1751031307566,4.02975,2432.4,2432.2,0.82199]
[1751031307764,4.02975,2432.4,2432.3,28.3634]
[1751031307966,4.35266267,2432.4,2432.3,28.3634]
[1751031308172,5.17460267,2432.4,2432.3,28.3634]
[1751031308472,1.96680267,2432.4,2432.3,28.3634]
[1751031308677,1.14938599,2432.4,2432.3,28.3634]
[1751031308874,1.97132599,2432.4,2432.3,28.3634]
[1751031309064,1.97132599,2432.4,2432.3,27.036]
[1751031309465,9.35718599,2432.4,2431.9,3.2078]
[1751031309773,0.82208,2432.0,2431.9,7.716]
[1751031309976,0.82208,2432.0,2431.9,34.744]
[1751031310270,0.82214,2431.9,2431.8,7.715]
[1751031310567,0.82214,2431.9,2431.8,34.742]
[1751031310869,0.82214,2431.9,2431.8,34.736]
[1751031311067,2.21994,2431.9,2431.8,34.736]
[1751031311273,2.13214,2431.9,2431.8,34.736]
[1751031311674,3.27563808,2431.9,2431.8,34.736]
[1751031312070,3.27563808,2431.9,2431.8,35.55815]
[1751031312369,3.27563808,2431.9,2431.8,0.82215]
[1751031312576,3.27563808,2431.9,2431.8,35.55315]
[1751031313276,3.27563808,2431.9,2431.8,34.731]
[1751031313478,0.82218,2431.7,2431.6,50.17219]
[1751031313673,3.2078,2431.8,2431.7,0.82218]
[1751031313874,4.35091652,2431.8,2431.7,0.82218]
[1751031314072,0.7192,2432.0,2431.9,0.82211]
[1751031314272,1.86229805,2432.0,2431.9,27.78411]
[1751031314576,1.14309805,2432.0,2431.9,27.78411]
[1751031314881,1.16299805,2432.0,2431.9,27.78411]
[1751031315073,1.16299805,2432.0,2431.9,29.15741]
[1751031315678,1.16299805,2432.0,2431.9,1.3733]
[1751031315976,4.37079805,2432.0,2431.9,26.963]
[1751031316176,5.19287805,2432.0,2431.9,26.963]
[1751031316771,4.37079805,2432.0,2431.9,26.974]
[1751031316971,5.19287805,2432.0,2431.9,26.974]
[1751031317574,2.05529,2431.9,2431.0,3.21314407]
[1751031317774,0.82228,2431.4,2431.3,7.715]
[1751031317971,0.82228,2431.4,2431.3,34.685]
[1751031318576,0.82228,2431.4,2431.3,35.50731]
[1751031318871,0.82228,2431.4,2431.3,34.686]
[1751031319072,0.82238,2431.1,2431.0,4.67154407]
[1751031319279,0.6989,2431.5,2431.0,37.87714407]
[1751031319478,1.99,2431.4,2431.2,0.82233]
[1751031319678,2.81228,2431.4,2431.3,26.943]
[1751031320073,3.13421831,2431.4,2431.3,34.512]
[1751031320273,0.82235,2431.3,2431.1,0.82237]
[1751031320474,1.99,2431.4,2431.2,34.495]
[1751031320778,0.82231,2431.3,2431.2,34.495]
[1751031321382,1.96708527,2431.3,2431.2,34.495]
[1751031321973,1.96708527,2431.3,2431.2,34.497]
[1751031322677,1.14477527,2431.3,2431.2,35.31935]
[1751031322879,0.82232,2431.3,2431.2,35.27633]
[1751031323076,1.14484787,2431.3,2431.2,35.27633]
[1751031323383,1.99701756,2431.3,2431.2,35.27633]
[1751031323581,1.17470756,2431.3,2431.2,35.27633]
[1751031324187,1.17470756,2431.3,2431.2,7.574]
[1751031324188,1.99701756,2431.3,2431.2,7.574]
[1751031324386,1.99701756,2431.3,2431.2,34.452]
[1751031324582,1.99701756,2431.3,2431.2,35.27435]
[1751031324783,1.17470756,2431.3,2431.2,35.27435]
[1751031325085,1.17470756,2431.3,2431.2,42.54864651]
[1751031325285,0.03,2431.3,2431.2,42.54864651]
[1751031325986,0.82228,2431.4,2431.3,0.82228]
[1751031326280,0.82221,2431.6,2431.5,0.82225]
[1751031326485,1.96696137,2431.6,2431.5,0.82225]
[1751031326685,1.99,2431.4,2431.0,3.21314407]
[1751031326889,1.14475137,2431.3,2431.1,34.443]
[1751031327184,0.82234,2431.3,2431.2,0.82234]
[1751031327385,1.96711264,2431.3,2431.2,0.82234]
[1751031327784,1.14477264,2431.3,2431.2,0.82234]
[1751031327986,1.14477264,2431.3,2431.2,35.24734]
[1751031328185,1.96708264,2431.3,2431.2,35.24734]
[1751031328381,0.82235,2431.2,2431.1,1.4591]
[1751031328576,0.82235,2431.2,2431.0,3.21314407]
[1751031328577,0.82238,2431.1,2431.0,0.00534407]
[1751031328784,0.82238,2431.1,2431.0,34.42834407]
[1751031328988,1.96698475,2431.1,2431.0,34.42834407]
[1751031329287,0.82238,2431.1,2431.0,34.42834407]
[1751031329482,0.82238,2431.1,2431.0,7.58034407]
[1751031329788,1.14436765,2431.1,2431.0,35.23676407]
[1751031329990,2.6786,2431.2,2431.1,0.82238]
[1751031330285,1.99,2431.2,2431.1,0.82238]
[1751031330589,1.99,2431.2,2431.1,2.21158]
[1751031330789,1.99,2431.2,2431.1,7.21158]
[1751031331084,4.02994,2431.9,2431.3,2.05574]
[1751031331384,1.14457364,2431.8,2431.7,11.30427651]
[1751031331697,2.60347364,2431.8,2431.7,45.73727651]
[1751031332192,1.4589,2431.8,2431.7,38.46298]
[1751031332386,1.4589,2431.8,2431.7,35.25518]
[1751031333089,1.4589,2431.8,2431.7,38.46298]
[1751031333289,1.4589,2431.8,2431.7,43.46298]
[1751031333486,0.00452332,2432.4,2432.3,0.82198]
[1751031333695,0.04592332,2432.4,2432.3,42.49627651]
[1751031333883,1.19050614,2432.4,2432.3,43.84927651]
[1751031334385,3.90279534,2432.9,2432.8,0.82181]
[1751031334386,0.6608,2432.9,2432.8,0.82181]